[Event "Oslo Chess Festival 2018"]
[Site "Oslo"]
[Date "2018.10.06"]
[Round "9"]
[White "Nordquelle, Daniel"]
[Black "Vasyliv, Stanislav"]
[Result "0-1"]
[ECO "B26"]
[WhiteElo "2235"]
[BlackElo "2142"]
[Annotator "NA"]
[PlyCount "118"]
[EventDate "2018.09.30"]
[EventCountry "NOR"]
[SourceTitle "playchess.com"]
[Source "ChessBase"]
[SourceQuality "1"]
[TimeControl "40/5400+30:1800+30"]

{[%evp 12,84,0,32767,32767,32767,32767,32767,32767,32767,32767,-38,-14,-23,-35,-35,0,-439,-436,-498,-528,-510,-556,-431,-319,-330,-77,-71,-79,-98,-75,-102,-76,-77,-71,-79,-90,-77,-75,-51,-64,-64,-62,32767,32767,32767,-106,-118,-126,-102,-112,-102,-108,-98,-68,-97,-85,-73,150,186,399,-169,-45,-81,-106,-93,0,-169,-163,-622,-718,-503,-611,-908,-436]} 1. e4 {[%emt 0:00:00]} c5 {[%emt 0:00:00]} 2. Nc3 {[%emt 0:00:24]} d6 {[%emt 0:00:00]} 3. g3 {[%emt 0:00:06]} Nc6 {[%emt 0:00:07]} 4. Bg2 {[%emt 0:00:05]} g6 {[%emt 0:00:05]} 5. Nge2 {[%emt 0:00:06]} Bg7 {[%emt 0:00:04]} 6. d3 {[%emt 0:00:08]} e6 {[%emt 0:02:08] LiveBook: 230 Games} 7. Be3 {[%emt 0:00:17]} Nd4 {[%emt 0:00:10]} 8. Qd2 {[%emt 0:00:28]} Ne7 {[%emt 0:00:17]} 9. Bg5 {[%emt 0:01:37] B26: Closed Sicilian: 3 g3, lines with early Be3} (9. O-O O-O 10. Nd1 Nxe2+ 11. Qxe2 b6 12. h4 Bb7 13. h5 Qd7 14. Bg5 Rae8 15. c3 f6 16. Bd2 f5 17. Ne3 d5 18. Rad1 Qb5 19. a4 Qd7 {½-½ (39) Adams,M (2742)-Timman,J (2605) Wijk aan Zee 2002}) 9... Rb8 {[%emt 0:01:36]} 10. Nd1 $146 {[%emt 0:01:11]} ({Predecessor:} 10. Nxd4 cxd4 11. Ne2 h6 12. Bxe7 Qxe7 13. O-O Qc7 14. c4 dxc3 15. Nxc3 b5 16. Rfc1 Qb6 {0-1 (50) Alves,J-Souza Filho,N (2131) Vitoria 2006}) 10... Nxe2 {[%emt 0:02:53]} 11. Kxe2 {[%emt 0:03:58]} O-O {[%emt 0:11:01]} 12. Bh6 {[%emt 0:02:06]} e5 {[%emt 0:10:41]} 13. h4 {[%emt 0:06:04]} f6 {[%emt 0:04:25]} 14. h5 $2 {[%emt 0:02:55] [#]} (14. Bxg7 $11 Kxg7 15. h5) 14... Bxh6 $1 {[%emt 0:02:20]} 15. Qxh6 {[%emt 0:02:22] [#]} g5 $1 {[%emt 0:00:04]} (15... Bg4+ 16. f3 $16) 16. Ne3 {[%emt 0:07:45]} Kh8 {[%emt 0:00:55]} 17. f4 {[%emt 0:00:13]} Ng8 {[%emt 0:01:29]} 18. Qg6 {[%emt 0:00:09]} hxg6 $2 {[%emt 0:00:27]} (18... c4 $19 {has better winning chances.} 19. Nf5 cxd3+ 20. cxd3 Bxf5 21. Qxf5 Ne7) 19. hxg6+ {[%emt 0:00:51]} Kg7 {[%emt 0:01:03]} 20. f5 {[%emt 0:11:00]} Nh6 {[%emt 0:01:50] [#]} 21. Rxh6 $1 {[%emt 0:00:04] [#]} Rh8 $1 {[%emt 0:00:14]} ({Inferior is} 21... Kxh6 22. Rh1+ Kg7 23. Rh7+ Kg8 24. Ng4 Rf7 25. Rxf7 Kh8 26. Rh7+ Kg8 27. Nh6+ Kf8 28. g7+ Ke8 29. g8=Q#) 22. Rxh8 {[%emt 0:00:05]} Qxh8 {[%emt 0:00:49]} 23. Rh1 {[%emt 0:00:19]} Qg8 {[%emt 0:06:00]} 24. Nd5 {[%emt 0:00:33]} Bd7 {[%emt 0:04:49]} 25. Ne7 $1 {[%emt 0:00:36] [#]} Qh8 $1 {[%emt 0:00:08]} 26. Rxh8 {[%emt 0:00:06]} Rxh8 {[%emt 0:00:07]} 27. Nd5 {[%emt 0:00:05]} b5 {[%emt 0:01:56]} 28. c4 {[%emt 0:03:32]} a5 {[%emt 0:04:25]} 29. Kd2 {[%emt 0:01:22]} a4 {[%emt 0:13:12]} 30. cxb5 {[%emt 0:13:42]} Bxb5 {[%emt 0:00:16]} 31. Kc3 {[%emt 0:01:38]} Rh2 {[%emt 0:05:53]} 32. Ne3 {[%emt 0:00:06]} Ba6 {[%emt 0:00:28]} 33. b3 {[%emt 0:00:08]} a3 {[%emt 0:01:26]} 34. Kc2 {[%emt 0:00:24]} d5 $2 {[%emt 0:01:17]} (34... Kg8 $15 {behält die Oberhand.}) 35. exd5 {[%emt 0:02:06] [#]} e4 $2 {[%emt 0:02:10]} (35... g4 $1 $16 {[%mdl 512]}) 36. Kc3 $4 {[%emt 0:00:50]} (36. dxe4 $18 Bf1 37. Nxf1 Rxg2+ 38. Nd2 Rxg3 39. d6) 36... exd3 {[%emt 0:05:12]} (36... Bxd3 $19 37. d6 Bb1) 37. d6 {[%emt 0:01:29]} Bb5 {[%emt 0:00:10]} 38. g4 {[%emt 0:02:11]} Rh8 $2 {[%emt 0:01:16]} (38... Kf8 $17 39. Kd2 Kg8) 39. Nf1 $2 {[%emt 0:08:35]} (39. Nc4 $11 {and White stays safe.}) 39... Rd8 {[%emt 0:00:49]} 40. Ng3 $2 {[%emt 0:00:29]} (40. Nd2) 40... Rxd6 {[%emt 0:00:20]} 41. Nh5+ {[%emt 0:30:09]} Kh6 {[%emt 0:32:26]} 42. g7 {[%emt 0:00:26]} Rd8 $19 {[%emt 0:01:55]} 43. Kd2 {[%emt 0:05:34]} c4 {[%emt 0:00:58]} 44. Bd5 {[%emt 0:02:18]} c3+ {[%emt 0:01:45]} 45. Kxc3 {[%emt 0:00:05]} d2 {[%emt 0:00:05]} 46. Bf3 {[%emt 0:00:15]} Bc6 {[%emt 0:01:02]} 47. Bd1 {[%emt 0:00:50]} Bd5 {[%emt 0:00:27]} 48. Nxf6 {[%emt 0:00:21]} Kxg7 {[%emt 0:00:17]} 49. Nxd5 {[%emt 0:00:17]} Rxd5 {[%emt 0:00:03]} 50. b4 {[%emt 0:04:28]} Kf6 {[%emt 0:00:26]} 51. Kb3 {[%emt 0:00:31]} Ke5 {[%emt 0:03:50]} 52. Kxa3 {[%emt 0:00:33]} Kd4 {[%emt 0:00:17]} 53. Kb3 {[%emt 0:02:22]} Ke3 {[%emt 0:01:30]} 54. a4 {[%emt 0:01:21]} Rd3+ {[%emt 0:07:13]} 55. Kc4 {[%emt 0:01:37]} Ra3 {[%emt 0:00:21]} 56. b5 {[%emt 0:01:16]} Ra1 {[%emt 0:00:10]} 57. Bb3 {[%emt 0:00:28]} Rb1 {[%emt 0:00:05]} 58. Bc2 {[%emt 0:00:07]} Rc1 {[%emt 0:00:04]} 59. Kb3 {[%emt 0:00:11]} Rxc2 {[%emt 0:00:06]} 0-1

[Event "Oslo Chess Festival 2018"]
[Site "Oslo"]
[Date "2018.10.06"]
[Round "9"]
[White "Lobersli, Henrik Oie"]
[Black "Mikalsen, Erlend"]
[Result "0-1"]
[ECO "E04"]
[WhiteElo "2120"]
[BlackElo "2332"]
[Annotator "NA"]
[PlyCount "114"]
[EventDate "2018.09.30"]
[EventCountry "NOR"]
[SourceTitle "playchess.com"]
[Source "ChessBase"]
[SourceQuality "1"]
[TimeControl "40/5400+30:1800+30"]

{[%evp 8,69,16,22,18,-4,11,16,14,10,18,0,39,44,50,40,52,32767,32767,32767,32767,7,0,-28,-20,-45,0,-20,-29,-52,-31,-33,-2,-65,-68,-76,-68,-83,-77,-71,-68,-98,-78,-71,-64,-35,0,0,0,-10,0,-6,0,-54,-52,-94,-82,-71,-50,-41,-48,-72,-31,-125]} 1. d4 {[%emt 0:00:00]} Nf6 {[%emt 0:02:12]} 2. c4 {[%emt 0:00:00]} e6 {[%emt 0:00:06]} 3. g3 {[%emt 0:00:11]} d5 {[%emt 0:00:09]} 4. Nf3 {[%emt 0:00:28]} dxc4 {[%emt 0:01:22]} 5. Bg2 {[%emt 0:00:32]} c5 {[%emt 0:00:06]} 6. Qa4+ {[%emt 0:01:00]} Nc6 {[%emt 0:01:58]} 7. O-O {[%emt 0:01:01]} Bd7 {[%emt 0:01:27]} 8. Qxc4 {[%emt 0:00:43]} b5 {[%emt 0:00:04] LiveBook: 298 Partien} 9. Qc3 {[%emt 0:00:15] E04: Katalanisch} c4 {[%emt 0:09:11]} (9... b4 10. Qd3 Rc8 11. dxc5 Bxc5 12. Be3 Bxe3 13. Qxe3 Qb6 14. Qxb6 axb6 15. Nbd2 Na5 16. Rfc1 Ke7 17. Kf1 Rhd8 18. Ne5 Bb5 19. Ke1 Nd7 {½-½ (19) Bluebaum,M (2633)-Kryvoruchko,Y (2705) Brest 2018}) 10. a4 {[%emt 0:12:38]} Nd5 {[%emt 0:01:59]} 11. Qc2 {[%emt 0:01:20]} a6 $146 {[%emt 0:00:14]} ({Vorgänger:} 11... Ndb4 12. Qd1 bxa4 13. Ne5 Rc8 14. Nxd7 Qxd7 15. e3 Be7 16. Qxa4 O-O {1-0 (43) Tunik,G (2419)-Konaplev,A (2272) Taganrog 2016}) 12. axb5 {[%emt 0:01:33]} axb5 {[%emt 0:00:06]} 13. Rxa8 {[%emt 0:00:15]} Qxa8 {[%emt 0:00:03]} 14. e4 {[%emt 0:09:49]} Ndb4 {[%emt 0:04:43]} 15. Qe2 {[%emt 0:00:58]} Nd3 {[%emt 0:04:31]} 16. b3 {[%emt 0:07:48]} Ncb4 {[%emt 0:13:48]} 17. bxc4 {[%emt 0:08:06]} bxc4 {[%emt 0:00:06]} 18. d5 {[%emt 0:02:02]} Bc5 {[%emt 0:04:32]} ({And not} 18... exd5 19. exd5+ Kd8 20. Ng5 $16) 19. Be3 {[%emt 0:04:01]} Qa7 {[%emt 0:01:40]} 20. Bxc5 {[%emt 0:05:07]} (20. Nfd2 $1 $11) 20... Qxc5 {[%emt 0:00:42]} 21. Nc3 {[%emt 0:00:36]} O-O {[%emt 0:00:19]} ({Much worse is} 21... exd5 $6 22. exd5+ Qe7 23. Nd2 $16) 22. Bh3 {[%emt 0:01:35]} Bc8 {[%emt 0:03:07]} 23. dxe6 {[%emt 0:07:15]} Bxe6 {[%emt 0:02:18]} 24. Bxe6 {[%emt 0:00:12]} fxe6 {[%emt 0:00:07]} 25. e5 {[%emt 0:04:23]} Nc6 {[%emt 0:02:33]} 26. Ng5 {[%emt 0:03:26]} Qxe5 {[%emt 0:17:55]} ({But not} 26... Ncxe5 $6 27. Qe4 $14) 27. Qxe5 {[%emt 0:01:01]} Ncxe5 {[%emt 0:00:09]} 28. f4 {[%emt 0:03:07]} Ng4 {[%emt 0:02:42]} 29. Nxe6 {[%emt 0:02:44]} Rb8 {[%emt 0:02:14]} 30. Rb1 {[%emt 0:02:24]} Rb3 {[%emt 0:00:04]} 31. Rxb3 {[%emt 0:01:32]} cxb3 {[%emt 0:00:04]} 32. Nd4 {[%emt 0:00:53]} b2 {[%emt 0:00:05]} 33. Nc2 $1 {[%emt 0:02:47]} Kf7 {[%emt 0:00:46]} 34. h3 {[%emt 0:01:46]} Ngf2 {[%emt 0:01:33]} 35. Kg2 $17 {[%emt 0:01:06]} (35. Na3 $11) 35... Ke7 {[%emt 0:05:19]} 36. Nb1 {[%emt 0:01:27]} Kd6 {[%emt 0:00:30]} 37. Ne1 {[%emt 0:03:51]} Kd5 {[%emt 0:00:49]} 38. Nxd3 {[%emt 0:00:34]} Nxd3 {[%emt 0:00:04]} 39. Kf3 {[%emt 0:00:47]} Kd4 {[%emt 0:00:25]} 40. f5 {[%emt 0:09:20]} Nc5 {[%emt 0:02:41]} 41. g4 {[%emt 0:03:11]} Ne4 {[%emt 0:01:18]} 42. Kf4 {[%emt 0:07:13]} Nc3 {[%emt 0:00:21]} 43. Na3 {[%emt 0:00:09]} Nd5+ {[%emt 0:14:34]} 44. Kf3 {[%emt 0:09:11]} Ne3 {[%emt 0:18:40]} 45. Kf4 {[%emt 0:01:24]} Nc4 {[%emt 0:01:28]} 46. Nb1 {[%emt 0:01:06]} Kd3 {[%emt 0:01:41]} 47. g5 {[%emt 0:00:24]} Kc2 {[%emt 0:00:08]} 48. f6 {[%emt 0:00:17]} gxf6 {[%emt 0:00:04]} 49. gxf6 {[%emt 0:00:09]} Kxb1 {[%emt 0:00:51]} 50. f7 {[%emt 0:00:06]} Kc1 {[%emt 0:00:16]} 51. f8=Q {[%emt 0:00:11]} b1=Q {[%emt 0:00:05]} 52. Qf5 {[%emt 0:05:44]} Qb7 {[%emt 0:00:31]} 53. Kg5 {[%emt 0:01:27]} Qg7+ {[%emt 0:00:40]} 54. Kh5 {[%emt 0:00:46]} Ne3 {[%emt 0:01:54]} 55. h4 {[%emt 0:04:30]} Qe7 {[%emt 0:03:22]} 56. Qf4 {[%emt 0:01:45]} Qe8+ {[%emt 0:00:35]} 57. Kh6 {[%emt 0:01:01]} Qg6# {[%emt 0:00:37]} 0-1

[Event "Oslo Chess Festival 2018"]
[Site "Oslo"]
[Date "2018.10.07"]
[Round "10"]
[White "Pigott, John C"]
[Black "Skotheim, Andreas"]
[Result "1-0"]
[ECO "B48"]
[WhiteElo "2386"]
[BlackElo "2160"]
[Annotator "NA"]
[PlyCount "109"]
[EventDate "2018.09.30"]
[EventCountry "NOR"]
[SourceTitle "playchess.com"]
[Source "ChessBase"]
[SourceQuality "1"]
[TimeControl "40/5400+30:1800+30"]

1. e4 {[%emt 0:00:00]} c5 {[%emt 0:00:02]} 2. Nf3 {[%emt 0:00:12]} e6 {[%emt 0:00:19]} 3. d4 {[%emt 0:00:09]} cxd4 {[%emt 0:00:05]} 4. Nxd4 {[%emt 0:00:05]} Nc6 {[%emt 0:00:09]} 5. Nc3 {[%emt 0:00:11]} Qc7 {[%emt 0:00:11]} 6. Be3 {[%emt 0:00:12]} a6 {[%emt 0:00:13]} 7. Qf3 {[%emt 0:00:13] B48: Sicilian: Taimanov: 5 Nc3 Qc7 6 Be3 a6 without Be2} d6 {[%emt 0:01:08] LiveBook: 95 Games} (7... Nf6 8. O-O-O Ne5 9. Qg3 b5 10. a3 Bb7 11. Bxb5 Rc8 12. Ba4 Nxe4 13. Nxe4 Bxe4 14. Bf4 Qc4 15. Bxe5 Qxa4 {1-0 (38) Vachier Lagrave,M (2789)-Anand,V (2776) Karlsruhe/Baden-Baden 2018}) 8. O-O-O {[%emt 0:00:14]} Bd7 {[%emt 0:00:34]} 9. Nxc6 {[%emt 0:00:28]} Bxc6 {[%emt 0:11:07]} 10. Qg3 {[%emt 0:01:03]} Nf6 {[%emt 0:06:36]} 11. f3 {[%emt 0:04:08]} Rc8 {[%emt 0:02:38]} 12. Bd3 {[%emt 0:00:33]} Be7 $146 {[%emt 0:05:16]} ({Predecessor:} 12... b5 13. Kb1 Nd7 14. Rhe1 Nc5 {1-0 (42) Lopez Martinez,J (2552)-Ivanisevic,I (2648) Sitges 2016}) 13. Qxg7 {[%emt 0:12:40]} Rg8 {[%emt 0:00:57]} 14. Qh6 {[%emt 0:00:13]} Rxg2 {[%emt 0:10:35]} 15. Qh3 {[%emt 0:15:14]} Rg8 {[%emt 0:03:39]} 16. Kb1 {[%emt 0:02:43]} Qa5 {[%emt 0:08:21]} 17. Ne2 {[%emt 0:17:53]} Qh5 {[%emt 0:10:33]} 18. Qf1 {[%emt 0:01:42]} d5 {[%emt 0:03:21]} 19. Ng3 {[%emt 0:12:28]} Qh4 {[%emt 0:01:17]} 20. e5 {[%emt 0:12:36]} Nd7 {[%emt 0:01:45]} 21. f4 {[%emt 0:00:56]} d4 {[%emt 0:06:43]} 22. Bxd4 {[%emt 0:00:08]} Bxh1 {[%emt 0:00:09]} 23. Qxh1 {[%emt 0:00:04]} Rc7 {[%emt 0:03:35]} 24. Rf1 {[%emt 0:06:10]} Rg4 {[%emt 0:02:46]} 25. Be3 {[%emt 0:01:43]} Nc5 {[%emt 0:06:07]} 26. Be2 {[%emt 0:00:39]} Rg8 {[%emt 0:01:08]} 27. Bf2 {[%emt 0:03:34]} Qh3 {[%emt 0:03:11]} 28. Bxc5 {[%emt 0:00:56]} Bxc5 {[%emt 0:00:38]} 29. Bxa6 {[%emt 0:00:57]} Kf8 {[%emt 0:02:53]} 30. Bd3 {[%emt 0:01:01]} h5 {[%emt 0:01:17]} 31. Ne4 {[%emt 0:02:41]} Qg2 {[%emt 0:01:15]} 32. Ng5 {[%emt 0:00:59]} Qxh1 {[%emt 0:00:25]} 33. Rxh1 {[%emt 0:00:01]} Be7 {[%emt 0:01:17]} 34. h4 {[%emt 0:00:48]} Rd7 {[%emt 0:02:16]} 35. Kc1 {[%emt 0:00:29]} Rd4 {[%emt 0:00:51]} 36. Rf1 {[%emt 0:00:04]} Bxg5 {[%emt 0:01:43]} 37. hxg5 {[%emt 0:00:04]} Kg7 {[%emt 0:00:30]} 38. Kd2 {[%emt 0:00:09]} Ra8 {[%emt 0:00:22]} 39. a3 {[%emt 0:01:00]} h4 {[%emt 0:01:57]} 40. Ke3 {[%emt 0:00:12]} Rdd8 {[%emt 0:00:19]} 41. Rh1 {[%emt 0:05:13]} Rh8 {[%emt 0:02:40]} 42. Rh3 {[%emt 0:00:06]} Kf8 {[%emt 0:01:55]} 43. Kd4 {[%emt 0:05:33]} Rc8 {[%emt 0:08:08]} 44. a4 {[%emt 0:02:30]} b6 {[%emt 0:04:31]} 45. b4 {[%emt 0:14:40]} Ke7 {[%emt 0:03:09]} 46. a5 {[%emt 0:02:09]} bxa5 {[%emt 0:01:05]} 47. bxa5 {[%emt 0:00:06]} Kd8 {[%emt 0:02:28]} 48. a6 {[%emt 0:01:21]} Rc7 $11 {[%emt 0:01:44]} 49. Be4 {[%emt 0:02:28]} Kc8 {[%emt 0:00:36]} 50. Bb7+ {[%emt 0:01:19]} Kb8 {[%emt 0:00:22]} 51. c4 {[%emt 0:00:21]} Rd7+ {[%emt 0:02:02]} 52. Kc5 {[%emt 0:00:23]} Rd1 {[%emt 0:01:25]} 53. Kc6 {[%emt 0:00:27]} Ka7 {[%emt 0:00:46]} 54. c5 {[%emt 0:00:24]} Kb8 {[%emt 0:02:29]} 55. a7+ {[%emt 0:00:21]} 1-0

[Event "Oslo Chess Festival 2018"]
[Site "Oslo"]
[Date "2018.10.07"]
[Round "10"]
[White "Sousa, Ludy Helsio Paulo"]
[Black "Haug, Johannes"]
[Result "0-1"]
[ECO "B19"]
[WhiteElo "2175"]
[BlackElo "2391"]
[Annotator "NA"]
[PlyCount "138"]
[EventDate "2018.09.30"]
[EventCountry "NOR"]
[SourceTitle "playchess.com"]
[Source "ChessBase"]
[SourceQuality "1"]
[TimeControl "40/5400+30:1800+30"]

1. e4 {[%emt 0:00:00]} c6 {[%emt 0:00:00]} 2. d4 {[%emt 0:00:56]} d5 {[%emt 0:00:00]} 3. Nc3 {[%emt 0:00:19]} dxe4 {[%emt 0:00:00]} 4. Nxe4 {[%emt 0:00:08]} Bf5 {[%emt 0:00:09]} 5. Ng3 {[%emt 0:00:07]} Bg6 {[%emt 0:00:09]} 6. h4 {[%emt 0:00:37]} h6 {[%emt 0:00:06]} 7. Nf3 {[%emt 0:00:13]} Nd7 {[%emt 0:00:13]} 8. Bd3 {[%emt 0:00:02]} Bxd3 {[%emt 0:00:10]} 9. Qxd3 {[%emt 0:00:09]} ({Much weaker is} 9. cxd3 e6 $15) 9... e6 {[%emt 0:00:10]} 10. Bf4 {[%emt 0:00:37] LiveBook: 37 Games} Qa5+ {[%emt 0:00:07]} 11. Bd2 {[%emt 0:00:20]} Qc7 {[%emt 0:00:06]} 12. c4 {[%emt 0:00:47] B19: Classical Caro-Kann: 4...Bf5 main line} (12. O-O-O Ngf6 13. Ne4 O-O-O 14. g3 Nc5 15. Nxc5 Bxc5 16. c4 Qe7 17. Rhe1 Ng4 18. Re2 Bb4 19. Kb1 Bxd2 20. Rdxd2 Nf6 21. Qc3 Kb8 {1-0 (41) Popov,I (2617)-Khairullin,I (2605) Dagomys 2010}) 12... Ngf6 {[%emt 0:01:19]} 13. Bc3 {[%emt 0:00:14]} Rd8 $146 {[%emt 0:08:19]} ({Predecessor:} 13... Be7 14. Qe2 O-O 15. O-O Qf4 16. Rfe1 Qg4 17. Rad1 Rfd8 18. b4 Bd6 19. Ne4 Nxe4 20. Qxe4 Qxe4 21. Rxe4 {0-1 (54) Martin Capitan,F (2116)-Padeiro,J (2285) Linares 2016}) 14. Ne4 {[%emt 0:03:12]} Be7 {[%emt 0:04:42]} 15. Nxf6+ {[%emt 0:03:23]} Nxf6 {[%emt 0:04:38]} 16. Qe2 {[%emt 0:04:56]} Qf4 {[%emt 0:15:07]} 17. O-O {[%emt 0:12:01]} Qg4 {[%emt 0:09:51]} 18. Rfe1 {[%emt 0:02:32]} O-O {[%emt 0:06:19]} 19. g3 {[%emt 0:09:50]} Qf5 {[%emt 0:07:18]} 20. Rad1 {[%emt 0:01:02]} b5 {[%emt 0:08:26]} (20... Ng4 $11 {hält das Gleichgewicht.}) 21. Ne5 {[%emt 0:02:49]} Rc8 {[%emt 0:00:43]} 22. b3 {[%emt 0:10:41]} h5 {[%emt 0:16:12]} 23. Rd3 {[%emt 0:08:56]} Rfe8 {[%emt 0:07:03]} 24. Kg2 {[%emt 0:04:23]} bxc4 {[%emt 0:02:15]} 25. bxc4 {[%emt 0:00:31]} Bd6 {[%emt 0:00:41]} 26. Rf3 {[%emt 0:01:27]} Qh7 {[%emt 0:00:07]} 27. Qd2 {[%emt 0:04:21]} Bxe5 {[%emt 0:02:06]} 28. dxe5 {[%emt 0:01:03]} Ng4 {[%emt 0:00:15]} 29. Qd7 {[%emt 0:00:19]} Rf8 {[%emt 0:04:40]} 30. Rxf7 {[%emt 0:03:31]} Rxf7 {[%emt 0:02:03]} 31. Qxc8+ {[%emt 0:00:08]} Rf8 {[%emt 0:00:04]} 32. Qxe6+ {[%emt 0:00:07]} Kh8 {[%emt 0:00:02]} 33. Kg1 {[%emt 0:12:02]} Qd3 {[%emt 0:01:07]} 34. Qd6 {[%emt 0:10:04]} Qf3 {[%emt 0:00:48]} 35. Bd4 {[%emt 0:00:46]} Nxf2 {[%emt 0:01:20]} 36. Qxf8+ {[%emt 0:00:34]} Qxf8 {[%emt 0:00:03]} 37. Bxf2 {[%emt 0:00:10]} Qe7 {[%emt 0:01:14]} 38. e6 {[%emt 0:00:18]} Kg8 {[%emt 0:00:26]} 39. Re5 {[%emt 0:01:00]} Qd6 {[%emt 0:00:32]} 40. Re4 {[%emt 0:01:37]} Kf8 {[%emt 0:00:31]} 41. Kg2 {[%emt 0:03:48]} a6 {[%emt 0:06:23]} 42. e7+ {[%emt 0:04:06]} Ke8 {[%emt 0:00:56]} 43. Bb6 {[%emt 0:14:17]} Qd2+ {[%emt 0:05:41]} 44. Kf3 {[%emt 0:00:37]} Qd3+ {[%emt 0:01:13]} 45. Be3 {[%emt 0:01:50]} Qf1+ {[%emt 0:00:06]} 46. Bf2 {[%emt 0:00:11]} c5 {[%emt 0:09:30]} 47. a4 {[%emt 0:02:39]} a5 {[%emt 0:00:07]} 48. Re2 {[%emt 0:00:52]} Qh1+ {[%emt 0:01:56]} 49. Kf4 {[%emt 0:00:17]} Qc1+ {[%emt 0:01:01]} 50. Kf3 {[%emt 0:05:19]} Qxc4 {[%emt 0:00:07]} 51. Re4 {[%emt 0:00:43]} Qd3+ {[%emt 0:04:03]} 52. Be3 {[%emt 0:01:40]} c4 {[%emt 0:01:04]} 53. Re5 {[%emt 0:00:38]} c3 {[%emt 0:03:41]} 54. Rxa5 {[%emt 0:00:10]} Kxe7 {[%emt 0:00:44]} 55. Rc5 {[%emt 0:02:34]} Kd6 $17 {[%emt 0:00:33]} (55... Qf1+ $19 56. Ke4 Qg2+ 57. Kd3 Qxg3) 56. Kf2 {[%emt 0:00:11]} Qc2+ {[%emt 0:00:45]} 57. Ke1 {[%emt 0:00:35]} Qb2 {[%emt 0:00:39]} 58. a5 {[%emt 0:00:36]} c2 {[%emt 0:00:32]} 59. a6 {[%emt 0:00:56]} Qa1+ {[%emt 0:00:18]} 60. Kf2 {[%emt 0:00:27]} Qa2 {[%emt 0:00:03]} 61. Kf3 {[%emt 0:00:16]} Qf7+ {[%emt 0:01:05]} 62. Ke2 {[%emt 0:00:09]} Qa2 {[%emt 0:00:34]} 63. Kd3 {[%emt 0:00:37]} Qxa6+ {[%emt 0:00:25]} 64. Kxc2 {[%emt 0:00:12]} Qe2+ {[%emt 0:00:06]} 65. Kb3 {[%emt 0:01:34]} Qxe3+ {[%emt 0:00:11]} 66. Rc3 {[%emt 0:00:24]} Qg1 {[%emt 0:00:07]} 67. Kc4 {[%emt 0:00:24]} Ke5 {[%emt 0:00:35]} 68. Rb3 {[%emt 0:00:56]} Qd4+ {[%emt 0:00:46]} 69. Kb5 {[%emt 0:00:03]} Qd5+ {[%emt 0:00:26]} 0-1

[Event "Oslo Chess Festival 2018"]
[Site "Oslo"]
[Date "2018.10.07"]
[Round "10"]
[White "Abdrlauf, Elham"]
[Black "Ranaldi, Lucas"]
[Result "1-0"]
[ECO "E11"]
[WhiteElo "2080"]
[BlackElo "2335"]
[Annotator "NA"]
[PlyCount "81"]
[EventDate "2018.09.30"]
[EventCountry "NOR"]
[SourceTitle "playchess.com"]
[Source "ChessBase"]
[SourceQuality "1"]
[TimeControl "40/5400+30:1800+30"]

{[%evp 11,56,34,38,43,31,15,30,15,13,-12,32767,-16,-6,-6,16,-5,28,25,16,16,26,-22,30,0,40,-46,-39,-58,64,-189,-177,-180,-259,-291,-302,-326,-281,-329,32767,-320,-258,-272,-268,32767,-341,-322,-312]} 1. d4 {[%emt 0:00:00]} Nf6 {[%emt 0:00:00]} 2. c4 {[%emt 0:00:00]} e6 {[%emt 0:00:00]} 3. Nf3 {[%emt 0:00:00]} Bb4+ {[%emt 0:00:00]} 4. Bd2 {[%emt 0:00:00]} c5 {[%emt 0:00:00]} 5. Bxb4 {[%emt 0:00:05]} cxb4 {[%emt 0:00:00]} 6. e3 {[%emt 0:01:22]} b6 {[%emt 0:00:37]} 7. Bd3 {[%emt 0:00:04]} Bb7 {[%emt 0:00:00]} 8. Nbd2 {[%emt 0:00:48]} O-O {[%emt 0:02:20]} 9. Qc2 {[%emt 0:03:24]} d6 {[%emt 0:03:23]} 10. g4 {[%emt 0:10:34]} g6 {[%emt 0:07:33]} 11. h3 {[%emt 0:06:13]} Nbd7 {[%emt 0:03:39]} 12. g5 {[%emt 0:03:31]} Nh5 {[%emt 0:01:12]} 13. Be4 {[%emt 0:00:26]} Qc7 {[%emt 0:08:00]} 14. Bxb7 {[%emt 0:14:40]} Qxb7 {[%emt 0:00:03]} 15. Qe4 {[%emt 0:00:45]} Qc7 {[%emt 0:02:50]} 16. Nh2 {[%emt 0:05:16]} Rab8 {[%emt 0:30:52]} 17. Ng4 {[%emt 0:03:11]} b5 {[%emt 0:00:35]} 18. b3 {[%emt 0:00:41]} (18. cxb5 $11 Rxb5 19. h4) 18... bxc4 {[%emt 0:00:49]} 19. bxc4 {[%emt 0:00:02]} Qa5 {[%emt 0:10:38]} ({Better is} 19... f5 $15 20. Qxe6+ Kh8) 20. Ke2 $2 {[%emt 0:03:47] Qxg} (20. Qc6 $14 Rbd8 21. Ke2 (21. Qxd6 b3 $16)) 20... Qxg5 {[%emt 0:01:29]} 21. Qc6 {[%emt 0:01:41] [#]} Qe7 $1 {[%emt 0:01:31]} 22. Rag1 {[%emt 0:08:59]} (22. Ne4 {war nötig.} f5 23. Qxd6) 22... f5 {[%emt 0:00:59]} 23. Nh2 {[%emt 0:00:02]} Kh8 {[%emt 0:03:30]} 24. Nhf3 {[%emt 0:00:54]} e5 {[%emt 0:05:07]} 25. dxe5 {[%emt 0:04:12] Nx} Nxe5 {[%emt 0:01:32]} 26. Qd5 {[%emt 0:01:28]} Rbc8 {[%emt 0:06:13]} 27. Nxe5 {[%emt 0:00:37] dxe} dxe5 $19 {[%emt 0:00:52]} ({Weaker is} 27... Qxe5 28. Qxe5+ dxe5 29. Rb1 $15) 28. Nf3 {[%emt 0:02:51]} Rc5 {[%emt 0:00:41]} 29. Qd2 {[%emt 0:01:07]} Rxc4 {[%emt 0:02:00]} 30. Rc1 {[%emt 0:00:30]} Rxc1 31. Rxc1 {[%emt 0:00:01]} Nf6 {[%emt 0:04:31]} 32. Rc4 {[%emt 0:01:16]} a5 {[%emt 0:01:02]} 33. Qc2 {[%emt 0:00:26]} Nd5 {[%emt 0:00:55]} 34. Kf1 {[%emt 0:00:55]} Nc3 {[%emt 0:01:07]} 35. a3 {[%emt 0:00:33]} Rd8 {[%emt 0:02:14]} 36. axb4 {[%emt 0:00:15]} axb4 {[%emt 0:00:03]} 37. Qb3 {[%emt 0:02:54]} Rd1+ {[%emt 0:00:52]} 38. Kg2 {[%emt 0:00:41]} Rb1 {[%emt 0:01:09]} 39. Rc8+ {[%emt 0:00:02]} Kg7 {[%emt 0:00:01]} 40. Qc4 {[%emt 0:01:06]} Kh6 {[%emt 0:01:06]} 41. Rc7 {[%emt 0:31:14]} 1-0